bitfinex/quotes_ETHUSD_20251111
["timestamp","ask_amount","ask_price","bid_price","bid_amount"]
[1762837588434,0.5,3567.7,3567.6,0.407504]
[1762837588740,0.9644,3567.7,3567.6,3.21050882]
[1762837589343,0.5,3567.7,3567.6,3.70140882]
[1762837590548,0.5,3567.7,3567.6,3.21050882]
[1762837590750,0.9644,3567.7,3567.6,3.21050882]
[1762837591944,0.5,3567.7,3567.6,3.21050882]
[1762837592249,0.5,3567.7,3567.6,3.70140882]
[1762837593151,0.4644,3567.7,3567.6,0.407504]
[1762837593316,1.4481,3567.7,3567.6,3.41050882]
[1762837593712,0.9644,3567.7,3567.6,3.41050882]
[1762837595836,0.5,3567.7,3567.6,3.41050882]
[1762837596689,0.656,3568.3,3568.2,3.20802397]
[1762837596851,1.156,3568.3,3568.2,3.20802397]
[1762837597875,0.656,3568.8,3568.7,0.405504]
[1762837598034,0.5,3568.4,3568.3,0.405504]
[1762837598239,0.5,3568.4,3568.3,3.20795895]
[1762837598861,0.5,3568.4,3568.3,3.69885895]
[1762837599265,1.156,3568.8,3568.7,0.405504]
[1762837599542,0.656,3568.8,3568.7,0.405504]
[1762837599743,2.1041,3568.8,3568.7,0.405504]
[1762837599953,0.5,3568.6,3568.5,3.20779967]
[1762837600478,0.686,3568.6,3568.5,3.20779967]
[1762837600773,0.5,3568.6,3568.5,3.69869967]
[1762837602272,0.9481,3568.6,3567.9,0.405504]
[1762837602479,0.686,3568.4,3568.3,3.20790826]
[1762837602678,0.4837,3568.5,3567.7,2.80292625]
[1762837602879,2.80214984,3568.7,3567.6,0.6903]
[1762837602880,0.656,3568.4,3567.6,0.6903]
[1762837603178,1.364612,3568.9,3567.6,0.6903]
[1762837603179,0.5,3567.9,3567.8,2.80284769]
[1762837603480,0.5,3568.7,3568.6,0.405504]
[1762837603669,1.6204,3568.7,3568.6,0.405504]
[1762837603864,2.1041,3568.7,3568.6,0.405504]
[1762837604660,2.1041,3568.7,3568.5,2.8022922]
[1762837604661,1.6041,3568.7,3568.5,0.405504]
[1762837604888,0.686,3568.6,3568.5,0.405504]
[1762837605591,1.1697,3568.6,3568.5,0.407504]
[1762837606299,1.1697,3568.6,3568.5,3.20980188]
[1762837607094,0.686,3568.6,3568.5,3.40980188]
[1762837607302,0.5,3568.6,3568.5,4.5219273]
[1762837607595,0.5,3568.6,3568.5,5.0102273]
[1762837607794,0.5,3568.6,3568.5,4.5219273]
[1762837609596,0.5,3568.6,3568.5,4.0310273]
[1762837610394,0.9644,3568.6,3568.5,0.607504]
[1762837610709,1.4481,3568.6,3568.5,0.202]
[1762837610897,4.25031935,3568.6,3568.5,0.202]
[1762837611197,5.51003135,3568.6,3568.5,0.202]
[1762837611406,2.80284769,3567.8,3567.7,0.002]
[1762837611622,4.90214769,3567.8,3567.7,0.002]
[1762837611898,4.06263825,3567.7,3567.6,0.2]
[1762837612116,2.80334089,3567.2,3566.5,0.405504]
[1762837612270,0.5,3566.6,3566.5,3.20937333]
[1762837612605,0.5,3566.5,3566.4,2.80392473]
[1762837612995,0.5,3566.5,3566.4,3.20942873]
[1762837613302,0.5,3566.5,3566.4,0.405504]
[1762837613487,0.2667,3566.5,3565.8,0.4883]
[1762837613692,0.5,3566.1,3566.0,2.98796247]
[1762837613894,0.5,3566.1,3566.0,3.61602482]
[1762837614072,0.5,3566.1,3566.0,4.59522482]
[1762837614464,0.5,3566.1,3566.0,5.00072882]
[1762837615400,0.5,3566.1,3566.0,4.51242882]
[1762837618016,0.159,3566.6,3566.4,0.405504]
[1762837618328,0.5,3566.5,3566.4,0.405504]
[1762837618502,0.7924,3566.5,3566.4,0.405504]
[1762837618890,0.7924,3566.5,3566.4,3.20945195]
[1762837619901,1.158,3566.5,3566.4,3.66075195]
[1762837620096,0.5,3566.5,3566.4,3.66075195]
[1762837620417,0.5,3566.5,3566.4,3.20945195]
[1762837620757,0.7811,3566.5,3566.4,3.20945195]
[1762837621084,0.5,3566.5,3566.4,3.20945195]
[1762837621283,0.5,3566.5,3566.4,3.66075195]
[1762837621586,0.4561,3566.9,3566.6,0.405504]
[1762837621587,0.5,3566.7,3566.6,0.405504]
[1762837621786,0.5,3566.7,3566.6,3.2092353]
[1762837621984,0.5,3566.7,3566.6,4.1446353]
[1762837622226,0.5,3566.7,3566.6,4.90151085]
[1762837624552,0.5,3566.7,3566.6,4.41741085]
[1762837627457,0.5,3566.7,3566.6,4.90151085]
[1762837628632,0.7795,3566.7,3566.6,0.405504]
[1762837628857,0.5,3566.5,3566.4,0.002]
[1762837629065,0.7795,3566.5,3566.4,2.80594795]
[1762837629424,1.4365,3566.5,3566.4,2.80594795]
[1762837629636,1.8924,3566.5,3566.4,0.002]
[1762837629839,1.8924,3566.5,3566.4,2.80594795]
[1762837630054,1.8924,3566.5,3566.4,0.407504]
[1762837630582,1.8924,3566.5,3566.4,3.21145195]
[1762837630950,1.4365,3566.5,3566.4,3.21145195]
[1762837631462,1.4365,3566.5,3566.4,0.407504]
[1762837631648,0.4577,3567.5,3566.6,0.405504]
[1762837631849,0.5,3566.7,3566.6,3.20923379]
[1762837632261,0.5,3566.7,3566.6,3.66053379]
[1762837633754,0.5,3566.7,3566.6,4.14463379]
[1762837634378,0.656,3567.4,3567.3,3.20874454]
[1762837634574,1.156,3567.4,3567.3,0.405504]
[1762837634776,1.8709712,3567.4,3567.3,0.405504]
[1762837635245,2.1546712,3567.4,3567.3,0.405504]
[1762837637280,0.5,3566.5,3566.4,3.21145195]
[1762837637788,0.5,3566.5,3566.4,4.14685195]
[1762837637972,0.5,3566.5,3566.4,5.14123433]
[1762837638477,0.9577,3567.3,3567.2,0.405504]
[1762837638778,1.6137,3567.3,3567.2,0.405504]
[1762837638975,1.8932,3567.3,3567.2,0.405504]
[1762837641095,0.7795,3567.3,3567.2,3.20882312]
[1762837641392,1.8914,3567.3,3567.2,3.20882312]
[1762837641596,1.4355,3567.3,3567.2,3.20882312]
[1762837641796,1.156,3567.3,3567.2,3.66012312]
[1762837642297,1.156,3567.3,3567.2,3.20882312]
[1762837642595,1.4355,3567.3,3567.2,3.20882312]
[1762837642801,1.4355,3567.3,3567.2,0.405504]
[1762837643679,1.4355,3567.3,3567.2,3.20882312]
[1762837644270,1.8924,3567.3,3567.2,3.20882312]
[1762837644728,0.501,3567.3,3567.2,3.66012312]
[1762837645023,0.001,3567.3,3567.2,4.74545297]
[1762837648981,0.001,3567.3,3567.2,10.61587643]
[1762837649180,0.001,3567.3,3567.2,7.6806647]
[1762837649803,0.001,3567.3,3567.2,10.61587643]
[1762837650778,0.001,3567.3,3567.2,7.6806647]
[1762837651004,0.001,3567.3,3567.2,7.1965647]
[1762837651217,0.001,3567.3,3567.2,7.6565647]
[1762837652602,0.001,3567.3,3567.2,10.59177643]
[1762837653393,0.001,3567.3,3567.2,7.6565647]
[1762837653596,0.001,3567.3,3567.2,10.59177643]
[1762837653993,0.001,3567.3,3567.2,7.6565647]
[1762837655012,0.001,3567.3,3567.2,4.72135297]
[1762837655211,0.501,3567.3,3567.2,7.1965647]
[1762837655409,0.501,3567.3,3567.2,7.6565647]
[1762837655610,0.501,3567.3,3567.2,7.1965647]
[1762837656337,0.779,3567.3,3567.2,3.20882312]
[1762837656540,1.24,3567.3,3567.2,2.80331912]
[1762837656743,1.24,3567.3,3567.2,3.20882312]
[1762837656898,0.501,3567.3,3567.2,6.67363085]
[1762837657330,0.501,3567.3,3567.2,6.61913485]
[1762837657538,0.501,3567.3,3567.2,6.14403485]
[1762837658035,0.501,3567.3,3567.2,6.61913485]
[1762837658209,0.779,3567.3,3567.2,3.20882312]
[1762837659014,0.5,3566.7,3566.6,2.80579072]
[1762837659445,0.5,3566.7,3566.6,4.14639472]
[1762837659649,0.5,3566.7,3566.6,5.40610672]
[1762837660152,0.5,3566.7,3566.6,4.14639472]
[1762837660522,0.5,3566.7,3566.6,3.68639472]
[1762837661331,0.5,3566.7,3566.6,6.62160645]
[1762837663744,0.5,3566.7,3566.6,3.68639472]
[1762837663933,0.5,3566.7,3566.6,3.21129472]
[1762837665124,0.5,3566.7,3566.6,3.68639472]
[1762837665964,0.5,3566.7,3564.3,0.57183166]
[1762837665965,0.4592,3566.5,3565.7,0.32794058]
[1762837666162,0.4592,3566.5,3563.3,3.48372704]
[1762837666163,0.4917,3565.7,3563.8,1.99070116]
[1762837666484,0.1828,3564.7,3563.7,2.93521173]
[1762837666630,0.1802,3565.8,3564.6,2.93521173]
[1762837666969,0.5,3565.9,3565.7,0.4751]
[1762837667324,0.5,3565.9,3565.8,2.80441976]
[1762837667757,0.5,3565.9,3565.8,3.27951976]
[1762837667945,0.5,3565.9,3565.8,5.40473576]
[1762837668142,0.14638222,3566.6,3565.8,5.40473576]
[1762837668143,0.64638222,3566.6,3566.5,3.20937333]
[1762837668342,0.64638222,3566.6,3566.5,3.68447333]
[1762837668661,0.001,3567.3,3567.2,3.20882312]
[1762837668823,0.001,3567.3,3567.2,3.68392312]
[1762837669223,0.001,3567.3,3567.2,4.17195631]
[1762837669429,0.001,3567.3,3567.2,7.13765044]
[1762837669841,0.001,3567.3,3567.2,10.86246522]
[1762837672573,0.001,3568.6,3567.6,3.20850882]
[1762837672730,0.001,3568.6,3567.6,9.36616564]
[1762837672939,0.001,3568.6,3567.6,11.06106319]
[1762837673239,0.001,3568.6,3568.5,4.46751388]
[1762837673538,1e-08,3569.1,3569.0,4.94222129]
[1762837673847,1e-08,3569.1,3569.0,9.79703607]
[1762837674047,1e-08,3569.1,3569.0,5.40222129]
[1762837674370,1e-08,3569.1,3569.0,6.70837496]
[1762837675279,1e-08,3569.1,3569.0,10.43318974]
[1762837676277,0.001,3570.6,3570.5,4.46594418]
[1762837676475,0.001,3570.6,3570.5,5.58824418]
[1762837676794,1e-08,3571.0,3570.9,4.91793046]
[1762837676936,1e-08,3571.0,3570.9,10.25958114]
[1762837677138,1e-08,3571.0,3570.9,10.74978114]
[1762837680214,0.001,3571.5,3571.3,3.2056048]
[1762837680370,0.001,3571.5,3571.3,3.8452048]
[1762837680573,0.001,3571.5,3571.3,7.10764882]
[1762837680998,0.001,3571.5,3571.3,6.43464882]
[1762837681162,0.001,3571.5,3571.3,10.8324636]
[1762837681768,0.001,3571.5,3571.3,6.02914482]
[1762837681969,0.001,3571.5,3571.3,6.02364482]
[1762837682608,0.001,3571.5,3571.3,6.91934882]
[1762837683904,0.001,3572.2,3572.1,3.20497769]
[1762837684070,0.001,3572.2,3572.1,3.87697769]
[1762837684267,0.766,3572.2,3572.1,3.87697769]
[1762837684473,1.2296,3572.2,3572.1,3.20497769]
[1762837684695,1.2296,3572.2,3572.1,3.87697769]
[1762837684903,0.766,3572.2,3572.1,3.87697769]
[1762837685086,0.001,3572.2,3572.1,3.87697769]
[1762837685286,1.2296,3572.2,3572.1,3.87697769]
[1762837685669,0.766,3572.2,3572.1,3.87697769]
[1762837685994,0.501,3572.2,3572.1,3.87697769]
[1762837686191,0.001,3572.2,3572.1,3.87697769]
[1762837687915,0.001,3572.2,3572.1,3.20497769]
[1762837688085,0.001,3572.2,3572.1,4.54463272]
[1762837688672,0.001,3572.2,3572.1,3.20497769]
[1762837688871,0.001,3572.2,3572.1,3.87597769]
[1762837689474,0.001,3572.2,3572.1,3.20497769]
[1762837689669,0.266,3572.2,3572.1,3.87597769]
[1762837689870,0.001,3572.2,3572.1,3.87597769]
[1762837690801,0.266,3572.2,3572.1,3.87597769]
[1762837691103,0.266,3572.2,3572.1,3.20497769]
[1762837691303,0.7296,3572.2,3572.1,3.20497769]
[1762837691470,0.7296,3572.2,3572.1,2.79947369]
[1762837691471,1.2296,3572.2,3572.1,2.79947369]
[1762837691676,0.766,3572.2,3572.1,3.20497769]
[1762837693915,0.5,3571.4,3571.3,2.8001008]
[1762837694273,0.765,3571.4,3571.3,4.4653168]
[1762837695281,0.5,3571.4,3571.3,4.4653168]
[1762837695727,0.7669,3571.4,3571.3,4.4653168]
[1762837696016,1.2286,3571.4,3571.3,2.8001008]
[1762837696518,1.2286,3571.4,3571.3,3.2056048]
[1762837697218,0.7669,3571.4,3571.3,3.2056048]
[1762837697584,0.5,3571.7,3571.6,0.405504]
[1762837697815,0.765,3571.7,3571.6,0.405504]
[1762837697984,0.765,3571.7,3571.6,3.2053696]
[1762837698513,0.4656,3572.0,3571.8,0.405504]
[1762837698717,0.001,3572.2,3572.1,3.20497769]
[1762837698885,0.766,3572.2,3572.1,3.20497769]
[1762837699509,0.001,3572.2,3572.1,3.20497769]
[1762837700524,0.7679,3572.2,3572.1,3.20497769]
[1762837700698,1.2296,3572.2,3572.1,3.20497769]
[1762837700891,0.5,3571.4,3571.3,2.8021008]
[1762837701282,0.5,3571.4,3571.3,3.2076048]
[1762837702815,0.765,3571.4,3571.3,3.2076048]
[1762837704684,1.2286,3571.4,3571.3,3.2076048]
[1762837709033,1.36979,3571.4,3571.3,0.002]
[1762837709191,1.72218341,3571.4,3571.3,0.002]
[1762837709393,0.90619,3571.4,3571.3,0.002]
[1762837709708,1.2216,3571.4,3571.3,2.8021008]
[1762837710809,1.2216,3571.4,3571.3,3.2076048]
[1762837710810,0.765,3571.4,3571.3,3.2076048]
[1762837710986,0.5,3571.4,3571.3,3.2076048]
[1762837711723,0.001,3572.2,3572.1,2.79947369]
[1762837711889,1.2209,3572.2,3572.1,2.79947369]
[1762837712094,0.95519,3572.2,3572.1,3.20497769]
[1762837712293,0.7662,3572.2,3572.1,3.20497769]
[1762837712537,0.501,3572.2,3572.1,3.20497769]
[1762837712749,0.501,3572.2,3572.1,3.66217769]
[1762837712909,0.501,3572.2,3572.1,3.20497769]
[1762837713093,0.501,3572.2,3572.1,3.66217769]
[1762837713294,0.001,3572.2,3572.1,5.01127769]
[1762837713696,0.001,3572.2,3572.1,4.51257769]
[1762837713996,0.001,3572.2,3572.1,5.26193766]
[1762837714507,0.001,3572.2,3572.1,5.76063766]
[1762837715788,0.001,3572.2,3572.1,5.26193766]
[1762837716216,0.001,3572.2,3572.1,4.51257769]
[1762837716796,0.001,3572.2,3572.1,5.01127769]
[1762837716994,0.001,3572.2,3572.1,6.29898442]
[1762837717207,0.001,3572.2,3572.1,6.27098969]
[1762837718344,0.001,3572.2,3572.1,4.46468969]
[1762837718648,0.001,3572.2,3572.1,5.13368969]
[1762837719157,0.001,3572.2,3572.1,5.59088969]
[1762837719641,0.001,3572.2,3572.1,3.87397769]
[1762837719946,0.501,3572.2,3572.1,3.87397769]
[1762837720712,0.001,3572.2,3572.1,3.87397769]
[1762837721420,0.001,3572.2,3572.1,3.20497769]
[1762837721948,0.001,3572.2,3572.1,3.66217769]
[1762837722314,0.001,3572.2,3572.1,3.20497769]
[1762837722721,0.001,3572.2,3572.1,3.87157242]
[1762837723045,0.001,3572.2,3572.1,5.07639714]
[1762837723725,0.001,3572.2,3572.1,6.33610914]
[1762837725444,0.001,3572.2,3572.1,5.83740914]
[1762837725649,0.501,3572.2,3572.1,3.46647369]
[1762837725966,0.7836,3572.2,3572.1,3.46647369]
[1762837726346,0.501,3572.2,3572.1,4.32917769]
[1762837726514,0.501,3572.2,3572.1,3.66217769]
[1762837726719,0.001,3572.2,3572.1,3.66217769]
[1762837726921,0.001,3572.2,3572.1,3.20497769]
[1762837728243,0.001,3572.2,3572.1,3.66217769]
[1762837729335,0.001,3572.2,3572.1,5.20932359]
[1762837729659,0.001,3572.2,3572.1,5.18132886]
[1762837730077,0.001,3572.2,3572.1,4.68262886]
[1762837730576,0.001,3572.2,3572.1,5.18132886]
[1762837731553,0.001,3572.2,3572.1,4.68262886]
[1762837731749,0.001,3572.2,3572.1,5.18132886]
[1762837732385,0.001,3572.2,3572.1,6.46903559]
[1762837732541,0.001,3572.2,3572.1,6.44104086]
[1762837732740,0.001,3572.2,3572.1,5.94234086]
[1762837733042,0.001,3572.2,3572.1,6.42694086]
[1762837733241,0.001,3572.2,3572.1,5.58788969]
[1762837733672,0.4755,3572.2,3572.1,3.87097769]
[1762837733969,0.501,3572.2,3572.1,3.87097769]
[1762837734158,0.001,3572.2,3572.1,3.87097769]
[1762837735272,0.4734,3572.2,3572.1,3.87097769]
[1762837735496,1.2403,3572.2,3572.1,2.79947369]
[1762837736285,1.2403,3572.2,3572.1,2.80147369]
[1762837739195,0.001,3572.2,3572.1,3.69917769]
[1762837739684,0.2839,3572.2,3572.1,3.20697769]
[1762837739845,1.2385,3572.2,3572.1,3.20697769]
[1762837740879,0.7856,3572.2,3572.1,3.20697769]
[1762837741088,1.2385,3572.2,3572.1,3.20697769]
[1762837743589,1.2385,3572.2,3572.1,0.002]
[1762837743812,1.71454916,3572.2,3572.1,0.002]
[1762837744355,6.18132679,3572.2,3572.1,0.002]
[1762837744790,2.97426116,3572.2,3572.1,0.002]
[1762837745001,5.77365649,3572.2,3572.1,0.002]
[1762837745378,2.97426116,3572.2,3572.1,0.002]
[1762837745579,5.77365649,3572.2,3572.1,0.002]
[1762837752390,2.97426116,3572.2,3572.1,0.002]
[1762837752595,3.63726116,3572.2,3572.1,0.002]
[1762837752798,6.43665649,3572.2,3572.1,0.002]
[1762837752996,9.95864808,3572.2,3572.1,0.002]
[1762837755409,7.15925275,3572.2,3572.1,0.002]
[1762837756839,9.95864808,3572.2,3572.1,0.002]
[1762837761646,6.70635275,3572.2,3572.1,0.002]
[1762837761858,3.18236116,3572.2,3572.1,0.002]
[1762837762549,1.162,3572.2,3572.1,3.29367369]
[1762837763624,1.4449,3572.2,3572.1,2.80147369]
[1762837763824,1.4449,3572.2,3572.1,0.002]
[1762837764425,1.8995,3572.2,3572.1,0.002]
[1762837764653,3.35557608,3572.2,3572.1,0.002]
[1762837764859,7.07023038,3572.2,3572.1,0.002]
[1762837765062,9.86962571,3572.2,3572.1,0.002]
[1762837765230,11.12933771,3572.2,3572.1,0.002]
[1762837767340,8.32994238,3572.2,3572.1,0.002]
[1762837767862,11.12933771,3572.2,3572.1,0.002]
[1762837768331,8.32894238,3572.2,3572.1,0.002]
[1762837768663,11.12833771,3572.2,3572.1,0.002]
[1762837770752,3.49968808,3572.2,3572.1,0.002]
[1762837770944,1.161,3572.2,3572.1,0.4532]
[1762837772068,1.161,3572.2,3572.1,3.25267369]
[1762837772272,1.161,3572.2,3572.1,0.4532]
[1762837772448,1.161,3572.2,3572.1,3.25267369]
[1762837773674,1.161,3572.2,3572.1,3.72387369]
[1762837773868,1.161,3572.2,3572.1,3.25267369]
[1762837774380,1.161,3572.2,3572.1,0.4532]
[1762837774664,1.16,3572.2,3572.1,3.25267369]
[1762837774843,0.501,3572.2,3572.1,3.85597769]
[1762837775059,0.501,3572.2,3572.1,4.32717769]
[1762837775060,1.16,3572.2,3572.1,4.32717769]
[1762837775650,1.16,3572.2,3572.1,0.4532]
[1762837775850,1.16,3572.2,3572.1,2.80147369]
[1762837776050,1.4373,3572.2,3572.1,0.002]
[1762837776260,1.4373,3572.2,3572.1,0.4532]
[1762837776261,1.16,3572.2,3572.1,0.4532]
[1762837776580,0.501,3572.2,3572.1,3.45047369]
[1762837776745,1.16,3572.2,3572.1,4.32717769]
[1762837777273,1.16,3572.2,3572.1,3.25267369]
[1762837778282,1.4373,3572.2,3572.1,2.80147369]
[1762837779079,1.4373,3572.2,3572.1,0.002]
[1762837779252,1.16,3572.2,3572.1,2.80147369]
[1762837780161,1.4391,3572.2,3572.1,0.002]
[1762837780693,2.45878543,3572.2,3572.1,0.002]
[1762837782691,2.00048543,3572.2,3572.1,0.002]
[1762837784257,1.4391,3572.2,3572.1,0.002]
[1762837784867,1.8974,3572.2,3572.1,0.002]
[1762837785067,4.69679533,3572.2,3572.1,0.002]
[1762837785502,12.29650733,3572.2,3572.1,0.002]
[1762837786000,12.40864213,3572.2,3572.1,0.002]
[1762837786296,14.30090216,3572.2,3572.1,0.002]
[1762837793004,20.16309008,3572.2,3572.1,0.002]
[1762837796813,2.79985185,3571.7,3571.4,0.002]
[1762837796973,10.42914392,3571.5,3571.4,0.002]
[1762837797312,11.8178435,3571.5,3571.4,0.002]
[1762837797509,12.39499245,3571.5,3571.4,0.002]
[1762837798414,11.00629287,3571.5,3571.4,0.002]
[1762837804428,0.4702,3571.2,3570.9,0.002]
[1762837804598,10.42254967,3570.6,3570.5,0.002]
[1762837804950,12.67546037,3570.6,3570.5,0.002]
[1762837805160,13.81916037,3570.6,3570.5,0.002]
[1762837805863,10.77131062,3570.6,3570.5,0.002]
[1762837806073,1.1815,3570.6,3570.5,0.4929]
[1762837806287,1.158,3570.6,3570.5,3.77612818]
[1762837806979,4.08909396,3570.6,3570.5,0.9754]
[1762837807661,4.08909396,3570.6,3570.5,3.77612818]
[1762837808230,4.08909396,3570.6,3570.5,0.4929]
[1762837808784,10.96154707,3570.6,3570.5,0.002]
[1762837809385,11.75825907,3570.6,3570.5,0.002]
[1762837809566,12.22125907,3570.6,3570.5,0.002]
[1762837811085,10.07725774,3570.6,3570.5,0.002]
[1762837811408,2.80096353,3570.2,3570.1,0.01]
[1762837811613,7.68175012,3570.2,3570.1,0.01]
[1762837811753,4.21818659,3570.2,3570.1,0.5009]
[1762837812158,7.67715012,3570.2,3570.1,0.5009]
[1762837812401,7.94595012,3570.2,3570.1,0.01]
[1762837812699,9.14659708,3570.2,3570.1,0.01]
[1762837812896,9.60959708,3570.2,3570.1,0.01]
[1762837813502,17.61431271,3570.2,3570.1,0.01]
[1762837814088,18.11431271,3570.2,3570.1,0.01]
[1762837815289,14.39612612,3570.2,3570.1,0.01]
[1762837815459,17.20930908,3570.2,3570.1,0.01]
[1762837816612,17.69180908,3570.2,3570.1,0.01]
[1762837816893,17.22880908,3570.2,3570.1,0.01]
[1762837817515,17.69180908,3570.2,3570.1,0.01]
[1762837818355,17.03380908,3570.2,3570.1,0.01]
[1762837818555,17.22880908,3570.2,3570.1,0.01]
[1762837819110,13.24182249,3570.2,3570.1,0.5009]
[1762837819261,16.96000908,3570.2,3570.1,0.012]
[1762837820195,15.21779708,3570.2,3570.1,0.5029]
[1762837820516,9.30035896,3570.2,3570.1,1.1844]
[1762837820811,1.158,3570.2,3570.1,1.1844]
[1762837821161,4.87618659,3570.2,3570.1,0.5029]
[1762837821365,4.87618659,3570.2,3570.1,0.012]
[1762837821621,4.87618659,3570.2,3570.1,0.6899]
[1762837821971,0.5,3570.2,3570.1,0.6899]
[1762837822175,1.158,3570.2,3570.1,3.49094198]
[1762837822374,1.158,3570.2,3570.1,4.52565993]
[1762837822574,0.501,3570.9,3570.8,2.80049288]
[1762837822786,0.501,3570.9,3570.8,3.29139288]
[1762837823374,0.501,3570.9,3570.8,0.4909]
[1762837823583,0.501,3570.9,3570.8,0.9734]
[1762837823840,1.159,3570.9,3570.8,0.9734]
[1762837824003,1.159,3570.9,3570.8,3.77389288]
[1762837824355,0.501,3570.9,3570.8,3.77389288]
[1762837824951,1.159,3570.9,3570.8,3.77389288]
[1762837825158,1.159,3570.9,3570.8,4.43134691]
[1762837826212,0.001,3570.9,3570.8,4.83685091]
[1762837827423,0.501,3570.9,3570.8,4.83685091]
[1762837828876,0.501,3570.9,3570.8,3.77389288]
[1762837831553,0.501,3570.9,3570.3,3.20636123]
[1762837831554,0.501,3570.9,3570.4,2.80080277]
[1762837831850,0.501,3570.9,3570.2,0.4654]
[1762837831851,0.4667,3570.9,3570.2,0.4654]
[1762837832045,0.5,3570.3,3570.2,3.26633717]
[1762837832570,0.5,3570.3,3570.2,3.75803717]
[1762837833076,0.5,3570.3,3570.2,0.4917]
[1762837833240,0.5,3570.3,3570.2,3.29266353]
[1762837833571,0.5,3570.3,3570.2,3.75806353]
[1762837833768,0.5,3570.3,3570.2,0.4917]
[1762837834067,0.5,3570.3,3570.2,3.75806353]
[1762837834574,1.159,3570.9,3570.8,2.80049288]
[1762837834736,1.159,3570.9,3570.8,3.29219288]
[1762837834936,1.159,3570.9,3570.3,3.26621337]
[1762837835154,1.159,3570.9,3570.1,0.199]
[1762837835155,0.5,3570.2,3570.1,0.6644]
[1762837835361,0.5,3570.2,3569.6,3.26683433]
[1762837835362,0.5,3569.7,3569.6,3.26683433]
[1762837835578,0.5,3569.7,3569.6,0.4654]
[1762837835768,0.5,3569.7,3569.6,3.75853433]
[1762837837775,0.5,3569.7,3569.6,0.9571]
[1762837837976,0.5,3569.7,3569.6,3.29313433]
[1762837838180,0.5,3569.7,3569.6,0.4917]
[1762837838386,0.5,3569.7,3569.6,3.29313433]
[1762837838576,0.5,3569.7,3569.6,0.4917]
[1762837838872,0.5,3569.7,3569.6,3.29313433]
[1762837839994,1.158,3569.7,3569.6,3.29313433]
[1762837840493,1.158,3569.7,3569.3,0.002]
[1762837840681,0.5,3569.4,3569.3,0.002]
[1762837841084,0.5038,3569.4,3569.3,0.002]
[1762837841601,0.5,3569.4,3569.3,0.002]
[1762837841963,0.5,3569.4,3569.3,0.4937]
[1762837843809,0.5,3569.4,3569.3,0.002]
[1762837844912,0.8595,3569.4,3569.3,0.002]
[1762837845115,1.7715913,3569.4,3569.3,0.002]
[1762837847083,9.35622763,3569.4,3569.3,0.002]
[1762837847297,9.76216542,3569.4,3569.3,0.002]
[1762837847493,9.85622763,3569.4,3569.3,0.002]
[1762837847886,10.26199875,3569.4,3569.3,0.002]
[1762837848305,4.56146029,3569.2,3569.1,0.01]
[1762837848505,7.25711092,3569.2,3569.1,0.01]
[1762837848687,7.73851092,3569.2,3569.1,0.01]
[1762837850216,7.3327398,3569.2,3569.1,0.01]
[1762837854918,7.8327398,3569.2,3569.1,0.01]
[1762837855640,7.8327398,3569.2,3569.1,0.012]
[1762837856732,8.2382438,3569.2,3569.1,0.012]
[1762837857046,8.64401492,3569.2,3569.1,0.012]
[1762837857413,8.75626553,3569.2,3569.1,0.012]
[1762837858144,3.30206231,3568.8,3568.7,0.002]
[1762837858439,9.09780734,3568.8,3568.7,0.002]
[1762837858634,9.49850734,3568.8,3568.7,0.002]
[1762837861920,10.40401134,3568.8,3568.7,0.002]
[1762837862224,10.92205071,3568.8,3568.7,0.002]
[1762837862424,3.80237641,3568.4,3568.3,0.002]
[1762837862745,4.49483749,3568.2,3568.1,1e-08]
[1762837862944,4.56303112,3567.2,3567.1,0.012]
[1762837863148,8.75116415,3567.2,3567.1,0.012]
[1762837863346,9.21696415,3567.2,3567.1,0.012]
[1762837863546,8.75116415,3567.2,3567.1,0.012]
[1762837863748,9.21696415,3567.2,3567.1,0.012]
[1762837864048,10.43830307,3567.2,3567.1,0.012]
[1762837864220,10.93830307,3567.2,3567.1,0.012]
[1762837864635,10.43830307,3567.2,3567.1,0.012]
[1762837864933,10.84407419,3567.2,3567.1,0.012]
[1762837865135,10.43830307,3567.2,3567.1,0.012]
[1762837866180,2.98105092,3567.2,3567.1,0.4733]
[1762837866457,2.417712,3567.2,3567.1,0.4733]
[1762837866658,5.22103112,3567.2,3567.1,0.012]
[1762837867631,5.22103112,3567.2,3566.1,0.01]
[1762837867632,2.80410521,3566.2,3566.1,0.01]
[1762837867831,9.20715024,3566.2,3566.1,0.01]
[1762837868129,9.75026069,3566.2,3566.1,0.01]
[1762837868377,5.76492766,3566.2,3566.1,0.01]
[1762837868581,5.22181721,3566.2,3566.1,0.4713]
[1762837869130,1.759712,3566.2,3566.1,0.4713]
[1762837869374,5.22181721,3566.2,3566.1,0.4713]
[1762837869541,5.22181721,3566.2,3566.1,0.01]
[1762837869874,5.36639547,3566.2,3566.1,0.01]
[1762837870074,5.22181721,3566.2,3566.1,1.1411]
[1762837870231,0.5,3566.2,3566.1,1.1411]
[1762837870436,1.158,3566.2,3566.1,1.1411]
[1762837870860,3.96210521,3566.2,3566.1,1.1411]
[1762837871165,1.158,3566.2,3566.1,1.1411]
[1762837871941,0.5,3566.2,3566.1,1.1411]
[1762837872260,1.158,3566.2,3566.1,1.1411]
[1762837872457,0.5,3566.2,3566.1,4.33981997]
[1762837872684,0.658,3566.4,3566.2,0.405504]
[1762837872879,0.1932,3567.9,3566.4,2.80391734]